bitfinex-derivatives/quotes_SOLF0:USTF0_20220101
["timestamp","ask_amount","ask_price","bid_price","bid_amount"]
[1641014832911,76.63476794,173.5,173.38,5.75871005]
[1641014833104,76.63476794,173.5,173.38,9.75871005]
[1641014833408,32.77716794,173.5,173.38,9.75871005]
[1641014833606,32.77716794,173.5,173.42,12.20232016]
[1641014833804,32.77716794,173.55,173.42,19.10432016]
[1641014834204,32.77716794,173.55,173.44,4.0]
[1641014834404,60.44195794,173.55,173.46,27.66479]
[1641014834603,60.44195794,173.55,173.46,33.03179]
[1641014835005,27.66479,173.55,173.46,33.03179]
[1641014835704,27.66479,173.55,173.46,5.367]
[1641014836107,27.66479,173.55,173.47,1.25345686]
[1641014836706,3.0,173.52,173.47,1.25345686]
[1641014836906,7.257,173.52,173.47,1.25345686]
[1641014837906,7.257,173.52,173.42,13.45577702]
[1641014838409,43.07847169,173.54,173.42,13.45577702]
[1641014838610,32.77716794,173.52,173.4,44.5148]
[1641014839408,5.75920753,173.56,173.4,44.5148]
[1641014839409,32.77716794,173.55,173.42,12.20232016]
[1641014839608,32.77716794,173.55,173.42,22.334704]
[1641014839908,3.0,173.54,173.42,22.334704]
[1641014840110,32.77716794,173.55,173.44,12.20232016]
[1641014840312,27.66479,173.5,173.44,12.20232016]
[1641014840511,27.66479,173.53,173.44,12.20232016]
[1641014841411,32.77716794,173.57,173.46,7.0]
[1641014841612,32.77716794,173.57,173.46,4.0]
[1641014841812,35.85716794,173.59,173.46,16.20232016]
[1641014842312,63.52195794,173.59,173.47,27.66479]
[1641014842512,63.52195794,173.59,173.47,34.09379]
[1641014842916,3.0,173.53,173.47,34.09379]
[1641014843116,5.109,173.54,173.48,19.52727931]
[1641014843314,62.15334501,173.58,173.48,19.52727931]
[1641014843515,59.15334501,173.58,173.48,19.52727931]
[1641014843715,48.8575,173.58,173.48,12.20232016]
[1641014843914,48.8575,173.58,173.47,6.199]
[1641014844918,48.8575,173.58,173.46,46.721]
[1641014845119,48.8575,173.58,173.47,4.0]
[1641014845317,30.74479,173.59,173.48,13.45608432]
[1641014845516,30.74479,173.59,173.49,5.75506446]
[1641014845717,3.08,173.59,173.49,5.75506446]
[1641014845919,3.08,173.59,173.5,12.20232016]
[1641014846324,27.66479,173.58,173.5,12.20232016]
[1641014846522,3.08,173.59,173.5,12.20232016]
[1641014846723,3.08,173.59,173.5,1.25376416]
[1641014847730,0.08,173.59,173.5,6.81576416]
[1641014848127,0.08,173.59,173.5,19.01808432]
[1641014848726,0.08,173.59,173.51,1.25376416]
[1641014849727,0.08,173.59,173.52,12.20232016]
[1641014849927,0.08,173.6,173.52,12.20232016]
[1641014850327,27.66479,173.57,173.5,1.25376416]
[1641014850528,0.08,173.6,173.5,1.25376416]
[1641014851129,0.08,173.6,173.49,17.95755023]
[1641014851829,0.08,173.6,173.5,1.25376416]
[1641014852430,0.08,173.6,173.51,27.66479]
[1641014853229,0.08,173.6,173.52,1.25376416]
[1641014854433,27.66479,173.58,173.52,1.25376416]
[1641014854631,27.66479,173.58,173.52,19.52698023]
[1641014854632,34.03979,173.58,173.52,19.52698023]
[1641014855431,3.0,173.56,173.48,32.90805076]
[1641014856133,3.0,173.56,173.47,56.76]
[1641014856331,27.66479,173.52,173.47,56.76]
[1641014856533,34.05179,173.52,173.43,32.90805076]
[1641014856932,34.05179,173.52,173.41,27.66479]
[1641014858033,27.66479,173.52,173.41,27.66479]
[1641014858232,27.66479,173.52,173.42,4.0]
[1641014858433,27.66479,173.52,173.44,27.66479]
[1641014858833,47.8582,173.56,173.44,27.66479]
[1641014860336,27.66479,173.55,173.44,27.66479]
[1641014861638,47.8582,173.56,173.44,27.66479]
[1641014862337,27.66479,173.53,173.44,27.66479]
[1641014862540,47.8582,173.56,173.44,27.66479]
[1641014863338,47.8582,173.56,173.42,39.90805076]
[1641014863539,52.1152,173.56,173.42,39.90805076]
[1641014863739,55.1152,173.56,173.42,39.90805076]
[1641014864342,27.66479,173.52,173.42,39.90805076]
[1641014864543,52.1152,173.56,173.43,3.0]
[1641014864741,47.8582,173.56,173.43,8.026]
[1641014864943,47.8582,173.56,173.43,5.026]
[1641014865444,47.8582,173.56,173.43,37.93405076]
[1641014866345,27.66479,173.54,173.43,37.93405076]
[1641014866546,32.03579,173.54,173.43,37.93405076]
[1641014866746,32.03579,173.54,173.43,5.026]
[1641014867247,32.03579,173.54,173.42,49.80389954]
[1641014867446,4.09253213,173.5,173.49,4.09253213]
[1641014868245,27.66479,173.54,173.48,4.09253213]
[1641014868447,47.8582,173.56,173.48,9.60953213]
[1641014868645,32.77716794,173.57,173.48,9.60953213]
[1641014869149,4.08313733,173.55,173.5,4.09253213]
[1641014870051,4.08313733,173.55,173.51,4.09253213]
[1641014870451,4.08313733,173.55,173.51,31.75732213]
[1641014870652,4.08313733,173.57,173.53,4.09253213]
[1641014871652,4.08282417,173.55,173.51,4.08282417]
[1641014872257,4.08282417,173.55,173.5,6.785]
[1641014872258,4.08266408,173.56,173.52,4.08266408]
[1641014872954,45.9434,173.6,173.5,6.747]
[1641014873756,4.09137215,173.55,173.54,4.09137215]
[1641014874756,0.08,173.6,173.49,27.66479]
[1641014874958,4.09126508,173.56,173.49,27.66479]
[1641014876456,27.66479,173.57,173.49,27.66479]
[1641014876657,27.66479,173.57,173.54,4.09132369]
[1641014877157,4.09150628,173.55,173.5,6.06775096]
[1641014878259,27.66479,173.57,173.5,6.06775096]
[1641014878558,4.09157025,173.54,173.53,4.09157025]
[1641014878958,0.08,173.6,173.5,6.06775096]
[1641014879159,4.09131877,173.56,173.49,5.704]
[1641014879762,4.09139807,173.55,173.54,4.09139807]
[1641014879959,4.09139807,173.55,173.54,9.63539807]
[1641014880561,27.66479,173.58,173.54,5.544]
[1641014881061,27.66479,173.58,173.48,6.06775096]
[1641014881465,27.66479,173.58,173.53,4.09165716]
[1641014881663,21.45448302,173.58,173.53,4.09165716]
[1641014881863,4.09184896,173.53,173.52,4.09184896]
[1641014883163,31.75663896,173.54,173.48,6.06775096]
[1641014883763,31.75663896,173.54,173.53,4.09179054]
[1641014883964,31.75663896,173.54,173.53,9.054e-05]
[1641014884665,27.66479,173.54,173.5,4.708]
[1641014885566,0.08,173.6,173.5,10.46273327]
[1641014886065,0.08,173.6,173.49,43.4388]
[1641014886266,5.913,173.6,173.49,43.4388]
[1641014886566,27.66479,173.59,173.52,12.27251883]
[1641014887165,27.66479,173.59,173.49,55.71131883]
[1641014888066,27.66479,173.59,173.51,12.27251883]
[1641014888469,0.08,173.6,173.52,27.66479]
[1641014890071,0.08,173.6,173.52,39.93730883]
[1641014890671,3.08,173.6,173.52,12.27251883]
[1641014890874,3.08,173.6,173.51,12.27251883]
[1641014891272,3.0,173.59,173.51,12.27251883]
[1641014891673,3.08,173.6,173.49,55.71131883]
[1641014892075,3.0,173.59,173.49,55.71131883]
[1641014892274,3.08,173.6,173.49,55.71131883]
[1641014892474,3.08,173.6,173.49,47.7128]
[1641014892475,27.66479,173.56,173.49,47.7128]
[1641014892773,27.66479,173.56,173.49,4.274]
[1641014893174,27.66479,173.56,173.51,12.27251883]
[1641014894276,27.66479,173.56,173.5,12.27251883]
[1641014896182,27.66479,173.56,173.5,1.25190057]
[1641014896781,27.66479,173.56,173.49,13.5244194]
[1641014900288,27.66479,173.56,173.5,4.0]
[1641014900487,27.66479,173.56,173.49,13.5244194]
[1641014901087,27.66479,173.56,173.5,12.27251883]
[1641014901688,27.66479,173.56,173.49,19.59041566]
[1641014903090,27.66479,173.56,173.49,1.25190057]
[1641014904592,3.0,173.55,173.49,1.25190057]
[1641014905794,3.0,173.54,173.49,1.25190057]
[1641014905992,27.66479,173.56,173.49,1.25190057]
[1641014906193,13.30401866,173.55,173.49,1.25190057]
[1641014906592,27.66479,173.5,173.49,1.25190057]
[1641014908694,55.32958,173.5,173.49,1.25190057]
[1641014908995,58.32958,173.5,173.49,1.25190057]
[1641014909197,58.32958,173.5,173.45,12.27251883]
[1641014909397,64.20058,173.5,173.45,12.27251883]
[1641014909797,3.0,173.49,173.45,12.27251883]
[1641014909997,64.20058,173.5,173.43,8.76]
[1641014910199,3.0,173.49,173.43,8.76]
[1641014910603,27.66479,173.44,173.43,8.76]
[1641014911004,27.66479,173.44,173.42,12.27251883]
[1641014912202,27.66479,173.44,173.4,12.27251883]
[1641014912603,27.66479,173.41,173.4,12.27251883]
[1641014915608,27.66479,173.41,173.37,8.82]
[1641014915808,27.66479,173.41,173.37,41.72805076]
[1641014916107,27.66479,173.41,173.37,32.90805076]
[1641014916308,27.66479,173.41,173.4,12.2810586]
[1641014916815,27.66479,173.44,173.4,12.2810586]
[1641014917009,73.48889,173.48,173.4,12.2810586]
[1641014917010,27.66479,173.48,173.4,12.2810586]
[1641014917210,27.66479,173.48,173.39,6.049]
[1641014918012,27.66479,173.48,173.45,12.27791334]
[1641014918712,27.66479,173.48,173.44,12.27791334]
[1641014920312,27.66479,173.48,173.43,12.27791334]
[1641014921615,6.741,173.49,173.43,12.27791334]
[1641014921817,76.86819,173.52,173.43,12.27791334]
[1641014923119,76.86819,173.52,173.44,12.27791334]
[1641014924220,3.0,173.47,173.44,12.27791334]
[1641014924422,5.984,173.47,173.44,12.27791334]
[1641014924621,76.86819,173.52,173.43,12.27791334]
[1641014924820,27.66479,173.49,173.43,18.31691334]
[1641014925221,49.2034,173.52,173.45,12.27791334]
[1641014926224,51.6659,173.57,173.46,12.27791334]
[1641014926423,48.7961,173.57,173.46,12.27791334]
[1641014926824,27.66479,173.55,173.46,39.94270334]
[1641014927327,3.0,173.53,173.46,12.27791334]
[1641014927725,3.0,173.51,173.46,12.27791334]
[1641014928025,9.328,173.51,173.42,12.27791334]
[1641014928526,6.328,173.51,173.42,12.27791334]
[1641014928730,27.66479,173.47,173.43,12.27791334]
[1641014929334,44.4574,173.52,173.43,12.27791334]
[1641014929536,44.4574,173.52,173.44,12.27791334]
[1641014929833,27.66479,173.55,173.44,12.27791334]
[1641014930034,73.74399,173.55,173.44,12.27791334]
[1641014930835,73.74399,173.55,173.45,27.66479]
[1641014931036,73.74399,173.55,173.46,12.27791334]
[1641014931735,73.74399,173.55,173.45,39.94270334]
[1641014933135,3.0,173.54,173.45,39.94270334]
[1641014933837,73.74399,173.55,173.45,39.94270334]
[1641014935538,27.66479,173.55,173.45,39.94270334]
[1641014935741,27.66479,173.58,173.45,39.94270334]
[1641014936039,3.0,173.56,173.45,39.94270334]
[1641014936441,10.29832548,173.57,173.46,18.34179785]
[1641014937140,3.0,173.56,173.46,18.34179785]
[1641014937341,3.0,173.54,173.46,18.34179785]
[1641014937541,3.0,173.5,173.46,18.34179785]
[1641014937743,5.77,173.5,173.46,6.06388451]
[1641014938042,5.77,173.5,173.43,18.34179785]
[1641014938842,46.4355,173.53,173.44,12.27791334]
[1641014939042,27.66479,173.55,173.44,17.80791334]
[1641014939242,27.66479,173.55,173.45,45.7452]
[1641014939644,27.66479,173.55,173.46,12.27791334]
[1641014940645,27.66479,173.55,173.46,18.34179785]
[1641014941144,27.66479,173.52,173.46,18.34179785]
[1641014941944,21.48224216,173.52,173.46,18.34179785]
[1641014943547,21.48224216,173.52,173.46,12.27791334]
[1641014943748,21.48224216,173.52,173.45,58.02311334]
[1641014944250,4.09240786,173.51,173.5,4.09240786]
[1641014946053,21.48224216,173.52,173.48,4.09240786]
[1641014946654,21.48224216,173.52,173.47,4.09240786]
[1641014947455,4.0927312,173.49,173.48,4.09240786]
[1641014948258,21.48224216,173.52,173.47,4.09240786]
[1641014948857,10.30629175,173.54,173.47,4.09240786]
[1641014949056,4.09274698,173.49,173.48,4.09240786]
[1641014950856,10.30629175,173.54,173.48,11.09240786]
[1641014951057,83.64926794,173.6,173.48,19.05791334]
[1641014951257,27.66479,173.59,173.48,46.72270334]
[1641014951758,30.66479,173.59,173.48,46.72270334]
[1641014951957,10.30232054,173.58,173.49,1.25133172]
[1641014953359,10.30232054,173.58,173.48,31.91612172]
[1641014954061,10.30232054,173.58,173.48,28.91612172]
[1641014954460,27.66479,173.59,173.49,13.52924506]
[1641014954661,27.66479,173.59,173.49,19.59409663]
[1641014955061,27.66479,173.59,173.49,1.25133172]
[1641014955062,10.28324144,173.58,173.49,1.25133172]
[1641014955264,16.00224144,173.58,173.49,1.25133172]
[1641014955962,5.719,173.58,173.49,1.25133172]
[1641014956563,16.00207196,173.58,173.49,1.25133172]
[1641014957363,47.8721,173.6,173.49,1.25133172]
[1641014959166,50.8721,173.6,173.49,1.25133172]
[1641014959568,3.0,173.58,173.49,1.25133172]
[1641014959869,50.8721,173.6,173.49,1.25133172]
[1641014961571,47.8721,173.6,173.51,3.0]
[1641014961771,47.8721,173.6,173.49,8.14133172]
[1641014962070,47.8721,173.6,173.5,12.27791334]
[1641014962870,27.74479,173.62,173.51,12.27791334]
[1641014963072,3.0,173.61,173.51,12.27791334]
[1641014963270,30.66479,173.59,173.51,12.27791334]
[1641014963472,27.66479,173.59,173.51,12.27791334]
[1641014964371,80.92189,173.62,173.51,12.27791334]
[1641014965073,10.29906319,173.61,173.52,3.0]
[1641014965273,10.29906319,173.61,173.53,27.66479]
[1641014965572,77.92189,173.62,173.53,41.19403506]
[1641014965773,0.08,173.62,173.53,41.19403506]
[1641014965974,3.0,173.6,173.53,41.19403506]
[1641014966180,8.317,173.6,173.53,13.52924506]
[1641014966478,8.317,173.6,173.54,1.25133172]
[1641014967276,27.66479,173.58,173.49,47.43373172]
[1641014967475,50.084,173.59,173.49,47.43373172]
[1641014967676,27.66479,173.6,173.49,50.43373172]
[1641014967876,0.08,173.62,173.49,50.43373172]
[1641014968175,47.8101,173.62,173.5,1.25133172]
[1641014968375,50.8101,173.62,173.5,1.25133172]
[1641014968678,47.8101,173.62,173.5,1.25133172]
[1641014968875,50.8101,173.62,173.5,19.57812417]
[1641014969279,27.66479,173.61,173.5,19.57812417]
[1641014969575,27.66479,173.61,173.5,1.25133172]
[1641014971079,30.66479,173.61,173.5,1.25133172]
[1641014971279,3.0,173.6,173.5,1.25133172]
[1641014971479,27.66479,173.61,173.49,1.25133172]
[1641014971678,10.27306018,173.6,173.49,1.25133172]
[1641014972879,30.66479,173.61,173.49,1.25133172]
[1641014973078,5.517,173.6,173.49,1.25133172]
[1641014973679,15.78983412,173.6,173.49,1.25133172]
[1641014975080,5.517,173.6,173.49,1.25133172]
[1641014975479,27.66479,173.61,173.49,1.25133172]
[1641014976081,30.66479,173.61,173.49,1.25133172]
[1641014976281,27.66479,173.61,173.49,1.25133172]
[1641014976483,3.0,173.53,173.49,1.25133172]
[1641014976681,9.223,173.53,173.49,1.25133172]
[1641014977082,6.223,173.53,173.49,1.25133172]
[1641014977281,6.223,173.53,173.47,12.27791334]
[1641014977282,27.66479,173.52,173.45,1.25133172]
[1641014977581,27.66479,173.55,173.45,1.25133172]
[1641014977582,27.66479,173.55,173.45,4.25133172]
[1641014977785,47.1422,173.57,173.45,13.78033172]
[1641014978183,47.1422,173.57,173.46,4.25133172]
[1641014978385,47.1422,173.57,173.47,3.0]
[1641014978582,32.77716794,173.61,173.46,4.25133172]
[1641014978784,49.0616,173.6,173.47,46.0412]
[1641014979184,49.0616,173.6,173.48,12.27791334]
[1641014979387,49.0616,173.6,173.51,27.66479]
[1641014979686,49.0616,173.6,173.51,5.493]
[1641014980586,52.0616,173.6,173.51,5.493]
[1641014980789,52.0616,173.6,173.48,12.27791334]
[1641014981189,54.8194811,173.6,173.52,1.24832085]
[1641014981387,27.66479,173.56,173.52,1.24832085]
[1641014981991,27.66479,173.56,173.46,19.57527812]
[1641014983291,54.8194811,173.6,173.47,12.27791334]
[1641014983492,3.0,173.59,173.47,17.56391334]
[1641014983693,54.8194811,173.6,173.47,17.56391334]
[1641014984092,54.8194811,173.6,173.48,1.24832085]
[1641014984692,54.8194811,173.6,173.48,5.24832085]
[1641014984892,49.0616,173.6,173.48,8.24832085]
[1641014985294,49.0616,173.6,173.5,27.66479]
[1641014986197,10.30016271,173.59,173.5,27.66479]
[1641014986997,10.30016271,173.59,173.51,1.24832085]
[1641014987196,10.30016271,173.59,173.51,5.84932085]
[1641014987697,10.30016271,173.59,173.52,1.24832085]
[1641014988998,10.30016271,173.59,173.51,1.24832085]
[1641014992704,3.0,173.56,173.51,1.24832085]
[1641014993404,27.66479,173.57,173.51,1.24832085]
[1641014993803,30.66479,173.57,173.48,6.668]
[1641014994004,27.66479,173.57,173.48,6.668]
[1641014994604,30.66479,173.57,173.48,6.668]
[1641014994806,3.0,173.56,173.48,6.668]
[1641014995006,3.0,173.56,173.49,1.24832085]
[1641014995210,30.66479,173.57,173.49,1.24832085]
[1641014995407,27.66479,173.57,173.49,6.24732085]
[1641014995808,27.66479,173.57,173.49,4.999]
[1641014996709,49.0616,173.6,173.49,4.999]
[1641014997409,49.0616,173.6,173.52,27.66479]
[1641014997807,3.0,173.58,173.45,87.69808734]
[1641014998008,3.0,173.58,173.46,49.405]
[1641014998209,3.0,173.58,173.5,13.52961125]
[1641014999010,3.0,173.58,173.48,5.073]
[1641014999409,27.66479,173.57,173.48,5.073]
[1641014999610,30.66479,173.57,173.48,5.073]
[1641014999913,30.66479,173.57,173.49,1.25169791]
[1641015000212,27.66479,173.57,173.49,1.25169791]
[1641015001612,81.83876794,173.6,173.49,1.25169791]
[1641015001811,81.83876794,173.6,173.49,4.25169791]
[1641015002013,10.30075582,173.59,173.49,16.52961125]
[1641015003213,49.0616,173.6,173.5,1.25169791]
[1641015003413,49.0616,173.6,173.54,27.66479]
[1641015003614,49.0616,173.6,173.54,33.28079]
[1641015004014,49.0616,173.6,173.55,1.25169791]
[1641015004214,0.08,173.62,173.55,1.25169791]
[1641015005416,0.08,173.62,173.57,27.66479]
[1641015005716,0.08,173.62,173.58,3.0]
[1641015005916,0.08,173.62,173.58,8.36]
[1641015006318,0.08,173.62,173.61,3.0]
[1641015006516,0.06,173.62,173.61,3.0]
[1641015006715,32.77716794,173.71,173.61,3.0]
[1641015007116,32.77716794,173.71,173.62,5.75092734]
[1641015007315,32.77716794,173.71,173.67,3.0]
[1641015007518,90.67471792,173.81,173.67,3.0]
[1641015007519,32.77716794,173.74,173.69,30.66479]
[1641015007718,32.77716794,173.74,173.7,3.0]
[1641015007917,32.77716794,173.74,173.69,27.66479]
[1641015008316,31.45716794,173.74,173.69,27.66479]
[1641015008516,31.45716794,173.74,173.71,1.25189201]
[1641015008717,10.28590734,173.77,173.71,6.12389201]
[1641015009517,10.28590734,173.77,173.72,27.66479]
[1641015009719,13.28590734,173.82,173.72,28.91668201]
[1641015010119,10.28590734,173.82,173.72,28.91668201]
[1641015010718,10.28590734,173.82,173.73,1.25189201]
[1641015011520,4.08682401,173.74,173.73,5.33871602]
[1641015012320,3.0,173.8,173.73,5.33871602]
[1641015012825,3.0,173.8,173.73,1.25189201]
[1641015013321,5.75175429,173.79,173.73,1.25189201]
[1641015013522,27.66479,173.77,173.73,1.25189201]
[1641015013722,10.28590734,173.81,173.7,1.25189201]
[1641015014523,10.28590734,173.82,173.7,1.25189201]
[1641015015523,27.66479,173.8,173.7,1.25189201]
[1641015016431,10.28590734,173.79,173.7,1.25189201]
[1641015017527,10.28590734,173.79,173.72,27.66479]
[1641015017726,10.28590734,173.79,173.7,1.25189201]
[1641015017929,10.28590734,173.79,173.69,39.94270334]
[1641015018430,10.28590734,173.79,173.7,1.25251096]
[1641015019927,10.28590734,173.79,173.72,3.0]
[1641015020131,10.28590734,173.79,173.72,4.823]
[1641015020929,10.28590734,173.82,173.73,1.25251096]
[1641015021529,10.28590734,173.82,173.74,27.66479]
[1641015022833,27.66479,173.83,173.75,1.25251096]
[1641015023833,27.66479,173.85,173.75,8.25251096]
[1641015024035,48.3245,173.9,173.78,4.0]
[1641015024233,48.3245,173.9,173.78,13.433]
[1641015024434,48.3245,173.9,173.78,6.433]
[1641015025535,37.93980967,173.89,173.79,13.5304243]
[1641015026538,10.27501967,173.88,173.78,1.25251096]
[1641015026939,10.27501967,173.88,173.78,4.25251096]
[1641015027137,10.27501967,173.88,173.78,1.25251096]
[1641015027437,10.27501967,173.88,173.87,27.66479]
[1641015027638,49.1310149,173.95,173.87,33.50379]
[1641015027839,27.66479,173.99,173.87,33.50379]
[1641015027840,76.7958049,173.99,173.87,33.50379]
[1641015028041,76.7958049,173.99,173.89,5.74201143]
[1641015028241,49.1310149,173.99,173.89,5.74201143]
[1641015028739,49.1310149,173.99,173.87,39.24646092]
[1641015029340,10.2681269,173.98,173.9,1.25251096]
[1641015029639,10.2681269,173.98,173.94,27.66479]
[1641015029840,10.2681269,173.98,173.94,32.16379]
[1641015030041,10.2681269,173.98,173.94,4.499]
[1641015030239,16.01343729,173.98,173.88,12.27791334]
[1641015030444,3.0,173.97,173.88,12.27791334]
[1641015030639,8.74531039,173.98,173.88,12.27791334]
[1641015030840,3.0,173.98,173.88,12.27791334]
[1641015031241,32.66216052,173.96,173.85,1.25284296]
[1641015031441,27.66479,173.95,173.85,1.25284296]
[1641015032141,10.2681269,173.94,173.85,1.25284296]
[1641015032842,42.93028742,173.94,173.85,1.25284296]
[1641015033442,49.50628742,173.94,173.85,1.25284296]
[1641015033644,27.66479,173.93,173.85,1.25284296]
[1641015034046,27.66479,173.93,173.83,41.1955463]
[1641015034444,27.66479,173.93,173.83,13.5307563]
[1641015034843,10.2681269,173.92,173.84,1.25284296]
[1641015035044,10.2681269,173.92,173.84,7.04784296]
[1641015035644,10.2681269,173.92,173.85,1.25284296]
[1641015036345,32.66216052,173.94,173.85,1.25284296]
[1641015036543,42.93028742,173.96,173.85,1.25284296]
[1641015037145,3.26748653,173.95,173.85,1.25284296]
[1641015037544,3.26748653,173.95,173.89,27.66479]
[1641015037545,35.92964705,173.95,173.89,27.66479]
[1641015037744,32.66216052,173.95,173.89,27.66479]
[1641015038045,32.66216052,173.95,173.84,1.25284296]
[1641015038245,6.265,173.95,173.83,12.27791334]
[1641015039145,6.265,173.95,173.82,13.53071576]
[1641015039345,32.66216052,173.95,173.82,13.53071576]
[1641015039547,27.66479,173.93,173.82,13.53071576]
[1641015040748,27.66479,173.93,173.83,12.27791334]
[1641015041549,27.66479,173.86,173.82,19.59411941]
[1641015041747,32.59079,173.86,173.82,19.59411941]
[1641015042548,32.59079,173.86,173.8,1.25280242]
[1641015043351,5.74993531,173.84,173.78,12.27791334]
[1641015043551,27.66479,173.83,173.75,19.59461506]
[1641015043951,27.66479,173.83,173.75,18.34197786]
[1641015044153,27.66479,173.83,173.73,18.34197786]
[1641015045052,27.66479,173.83,173.74,12.27791334]
[1641015045652,27.66479,173.8,173.74,12.27791334]
[1641015045853,33.35079,173.8,173.71,12.27791334]
[1641015046054,3.0,173.79,173.71,12.27791334]
[1641015046655,33.35079,173.8,173.7,18.34197786]
[1641015046853,3.0,173.79,173.7,18.34197786]
[1641015047254,3.0,173.78,173.7,18.34197786]
[1641015047453,33.35079,173.8,173.7,18.34197786]
[1641015047654,27.66479,173.72,173.67,18.23491334]
[1641015047853,10.2843986,173.79,173.67,18.23491334]
[1641015048355,5.75175429,173.79,173.67,18.23491334]
[1641015048554,5.75175429,173.79,173.7,12.27791334]
[1641015049155,8.75175429,173.79,173.62,6.769]
[1641015049353,8.75175429,173.79,173.61,76.26829]
[1641015049555,27.66479,173.73,173.61,76.26829]
[1641015050456,27.66479,173.73,173.61,48.6035]
[1641015051657,27.66479,173.7,173.61,48.6035]
[1641015051959,27.66479,173.7,173.59,50.9796]
[1641015052155,27.66479,173.7,173.58,27.66479]
[1641015052760,27.66479,173.7,173.56,49.747]
[1641015053360,27.66479,173.7,173.54,8.75357441]
[1641015053560,27.66479,173.67,173.55,27.66479]
[1641015053962,27.66479,173.67,173.55,34.66479]
[1641015054162,27.66479,173.7,173.55,34.66479]
[1641015054361,27.66479,173.7,173.55,40.27079]
[1641015054760,27.66479,173.7,173.55,33.27079]
[1641015055361,27.66479,173.7,173.55,34.66479]
[1641015055663,93.0959,173.72,173.58,3.0]
[1641015055863,27.66479,173.73,173.62,8.75092734]
[1641015056063,27.66479,173.73,173.62,10.21992734]
[1641015056262,8.75043128,173.83,173.63,8.75043128]
[1641015056463,5.75043128,173.83,173.63,54.42503128]
[1641015056665,3.0,173.79,173.63,48.6746]
[1641015056863,5.7519197,173.78,173.63,48.6746]
[1641015057264,8.75059662,173.82,173.63,54.42519662]
[1641015057464,3.0,173.79,173.63,54.42519662]
[1641015057663,27.66479,173.73,173.63,54.42519662]
[1641015057866,27.66479,173.73,173.63,5.75059662]
[1641015058568,7.632,173.84,173.67,3.0]
[1641015058764,8.74993531,173.84,173.66,7.0]
[1641015058963,32.66216052,173.81,173.69,12.27791334]
[1641015059169,32.66216052,173.81,173.69,16.61191334]
[1641015059567,27.66479,173.73,173.69,16.61191334]
[1641015059765,27.66479,173.76,173.72,12.27791334]
[1641015060367,27.66479,173.76,173.67,18.34240058]
[1641015060568,3.0,173.72,173.67,18.34240058]
[1641015060768,5.328,173.72,173.67,18.34240058]
[1641015061568,10.28704871,173.75,173.65,12.27791334]
[1641015061770,10.28704871,173.75,173.68,27.66479]
[1641015062268,27.66479,173.77,173.72,12.27791334]
[1641015063069,27.66479,173.8,173.71,12.27791334]
[1641015063670,27.66479,173.77,173.71,12.27791334]
[1641015066073,30.66479,173.77,173.71,12.27791334]
[1641015066272,27.66479,173.77,173.71,12.27791334]
[1641015066674,27.66479,173.77,173.68,12.27791334]
[1641015068376,21.41512348,173.77,173.7,12.27791334]
[1641015068575,21.41512348,173.77,173.7,16.96791334]
[1641015069777,27.66479,173.8,173.7,16.96791334]
[1641015069975,32.66216052,173.83,173.7,16.96791334]
[1641015071175,13.24776587,173.84,173.7,4.69]
[1641015071675,27.66479,173.82,173.7,32.35479]
[1641015072077,27.66479,173.82,173.71,5.74795229]
[1641015072477,27.66479,173.82,173.7,38.1030727]
[1641015072678,4.07224462,173.8,173.74,4.07224462]
[1641015073278,3.0,173.79,173.74,4.07224462]
[1641015073478,7.07224462,173.79,173.73,4.07224462]
[1641015073679,31.73703462,173.79,173.73,4.07224462]
[1641015074082,4.07224462,173.76,173.71,4.07224462]
[1641015074881,27.66479,173.79,173.74,4.07224462]
[1641015075081,27.66479,173.79,173.74,8.70924462]
[1641015075682,27.66479,173.79,173.75,4.07224462]
[1641015076282,31.73703462,173.79,173.73,4.07224462]
[1641015077082,27.66479,173.79,173.74,4.07224462]
[1641015078284,3.0,173.78,173.74,4.07224462]
[1641015078484,27.66479,173.79,173.74,4.07224462]
[1641015078485,30.66479,173.79,173.74,4.07224462]
[1641015078684,27.66479,173.79,173.74,4.07224462]
[1641015079085,27.66479,173.79,173.73,4.07224462]